fUSD/lending_fUSD_20241011
["ID","MTS","AMOUNT","RATE_DAILY","PERIOD"]
[340135277,1728669060968,-782.03,0.00031506,2]
[340135278,1728669060978,-500.0,0.00031506,2]
[340135279,1728669060989,-1198.37,0.00031506,2]
[340135280,1728669060998,-500.0,0.00031506,2]
[340135281,1728669061008,-564.81251679,0.00031506,2]
[340135282,1728669061018,-584.17166473,0.00031506,2]
[340135283,1728669061028,-500.0,0.00031506,2]
[340135284,1728669061038,-500.0,0.00031506,2]
[340135285,1728669061047,-500.0,0.00031506,2]
[340135286,1728669061057,-1601.6,0.00031506,2]
[340135287,1728669061067,-1185.2,0.00031506,2]
[340135288,1728669061076,-500.0,0.00031506,2]
[340135289,1728669061085,-689.79,0.00031506,2]
[340135290,1728669061094,-545.09,0.00031506,2]
[340135291,1728669061206,-223.13,0.00031506,2]
[340135292,1728669061216,-500.0,0.00031506,2]
[340135293,1728669061225,-2408.32,0.00031506,2]
[340135294,1728669061235,-500.0,0.00031506,2]
[340135295,1728669061245,-900.34,0.00031506,2]
[340135296,1728669061254,-1346.47,0.00031506,7]
[340135297,1728669061263,-500.0,0.00031506,2]
[340135298,1728669061272,-155.816356,0.00031506,7]
[340135299,1728669061282,-638.56,0.00031506,2]
[340135300,1728669061292,-1086.29,0.00031506,2]
[340135301,1728669061302,-518.17,0.00031506,2]
[340135302,1728669061312,-155.816352,0.00031506,7]
[340135303,1728669061322,-1644.73,0.00031506,2]
[340135304,1728669061331,-616.06,0.00031506,2]
[340135305,1728669061340,-500.0,0.00031506,2]
[340135306,1728669061350,-500.0,0.00031506,2]
[340135307,1728669061359,-929.21,0.00031506,2]
[340135308,1728669061368,-500.0,0.00031506,2]
[340135309,1728669061377,-500.0,0.00031506,2]
[340135310,1728669061388,-295.480051,0.00031506,7]
[340135311,1728669061400,-295.480051,0.00031506,7]
[340135312,1728669061412,-860.5,0.00031506,2]
[340135313,1728669061421,-1559.13,0.00031506,2]
[340135314,1728669061432,-500.0,0.00031506,2]
[340135315,1728669061442,-500.0,0.00031506,2]
[340135316,1728669061453,-736.29,0.00031506,2]
[340135317,1728669061462,-500.0,0.00031506,2]
[340135318,1728669061471,-500.0,0.00031506,2]
[340135319,1728669061481,-655.69,0.00031506,2]
[340135320,1728669061490,-500.0,0.00031506,2]
[340135321,1728669061500,-500.0,0.00031506,2]
[340135322,1728669061510,-500.0,0.00031506,2]
[340135323,1728669061519,-499.2994,0.00031506,7]
[340135324,1728669061528,-956.59,0.00031506,2]
[340135325,1728669061538,-499.2994,0.00031506,7]
[340135326,1728669061548,-2475.83,0.00031506,2]
[340135327,1728669061557,-554.62,0.00031506,2]
[340135328,1728669061567,-921.55,0.00031506,2]
[340135329,1728669061577,-511.06583496,0.00031506,2]
[340135330,1728669061586,-458.555401,0.00031506,7]
[340135331,1728669061596,-500.0,0.00031506,2]
[340135332,1728669061605,-500.0,0.00031506,2]
[340135333,1728669061615,-458.555401,0.00031506,7]
[340135334,1728669061624,-661.98,0.00031506,2]
[340135335,1728669061634,-500.0,0.00031506,2]
[340135336,1728669061644,-774.31,0.00031506,2]
[340135337,1728669061653,-500.0,0.00031506,2]
[340135338,1728669061663,-500.0,0.00031506,2]
[340135339,1728669061672,-500.0,0.00031506,2]
[340135340,1728669061681,-501.2214847,0.00031506,2]
[340135341,1728669061690,-2496.26,0.00031506,2]
[340135342,1728669061700,-500.0,0.00031506,2]
[340135343,1728669061710,-496.82874549,0.00031506,2]
[340135344,1728669061720,-500.0,0.00031506,2]
[340135345,1728669061729,-14424.26,0.00031506,2]
[340135346,1728669061739,-500.0,0.00031506,2]
[340135347,1728669061749,-1022.42,0.00031506,2]
[340135348,1728669061759,-500.0,0.00031506,2]
[340135349,1728669061769,-500.0,0.00031506,2]
[340135350,1728669061779,-500.0,0.00031506,2]
[340135351,1728669061789,-500.0,0.00031506,2]
[340135352,1728669061798,-573.42,0.00031506,2]
[340135353,1728669061808,-500.0,0.00031506,2]
[340135354,1728669061817,-1278.84,0.00031506,2]
[340135355,1728669061828,-1628.92,0.00031506,2]
[340135356,1728669061838,-500.0,0.00031506,2]
[340135357,1728669061848,-456.79847109,0.00031506,2]
[340135358,1728669061858,-500.0,0.00031506,2]
[340135359,1728669061868,-500.0,0.00031506,2]
[340135360,1728669061878,-3741.28,0.00031506,2]
[340135361,1728669061888,-634.54,0.00031506,2]
[340135362,1728669061898,-3669.49,0.00031506,2]
[340135363,1728669061907,-500.0,0.00031506,2]
[340135364,1728669061917,-500.0,0.00031506,2]
[340135365,1728669061927,-698.69,0.00031506,2]
[340135366,1728669061936,-509.35,0.00031506,2]
[340135367,1728669061946,-500.0,0.00031506,2]
[340135368,1728669061957,-259.47,0.00031506,2]
[340135369,1728669061968,-500.0,0.00031506,2]
[340135370,1728669061978,-849.69,0.00031506,2]
[340135371,1728669061988,-500.0,0.00031506,2]
[340135372,1728669061998,-500.0,0.00031506,2]
[340135373,1728669062009,-929.15,0.00031506,2]
[340135374,1728669062020,-500.0,0.00031506,2]
[340135375,1728669062029,-861.93,0.00031506,2]
[340135376,1728669062040,-500.0,0.00031506,2]
[340135377,1728669062051,-500.0,0.00031506,2]
[340135378,1728669062061,-500.0,0.00031506,2]
[340135379,1728669062072,-500.0,0.00031506,2]
[340135380,1728669062081,-500.0,0.00031506,2]
[340135381,1728669062091,-500.0,0.00031506,2]
[340135382,1728669062101,-180.892139,0.00031506,7]
[340135383,1728669062110,-500.0,0.00031506,2]
[340135384,1728669062120,-180.892139,0.00031506,7]
[340135385,1728669062130,-500.0,0.00031506,2]
[340135386,1728669062140,-692.96,0.00031506,2]
[340135387,1728669062149,-670.31,0.00031506,2]
[340135388,1728669062159,-500.0,0.00031506,2]
[340135389,1728669062168,-500.0,0.00031506,2]
[340135390,1728669062177,-500.0,0.00031506,2]
[340135391,1728669062187,-500.0,0.00031506,2]
[340135392,1728669062196,-500.0,0.00031506,2]
[340135393,1728669062208,-528.12,0.00031506,2]
[340135394,1728669062217,-500.0,0.00031506,2]
[340135395,1728669062227,-500.0,0.00031506,2]
[340135396,1728669062236,-500.0,0.00031506,2]
[340135397,1728669062246,-394.871888,0.00031506,7]
[340135398,1728669062256,-539.94,0.00031506,2]
[340135399,1728669062266,-500.0,0.00031506,2]
[340135400,1728669062276,-394.871888,0.00031506,7]
[340135401,1728669062286,-568.04,0.00031506,2]
[340135402,1728669062296,-236.386338,0.00031506,7]
[340135403,1728669062307,-500.0,0.00031506,2]
[340135404,1728669062317,-236.386338,0.00031506,7]
[340135405,1728669062326,-500.0,0.00031506,2]
[340135406,1728669062336,-156.360367,0.00031506,7]
[340135407,1728669062345,-3905.76,0.00031506,2]
[340135408,1728669062354,-2044.103329,0.00031506,7]
[340135409,1728669062364,-500.0,0.00031506,2]
[340135410,1728669062374,-1317.24,0.00031506,2]
[340135411,1728669062383,-156.360367,0.00031506,7]
[340135412,1728669062397,-2044.103329,0.00031506,7]
[340135413,1728669062407,-151.0,0.00031506,7]
[340135414,1728669062417,-1136.8,0.00031506,2]
[340135415,1728669062426,-500.0,0.00031506,2]
[340135416,1728669062435,-500.0,0.00031506,2]
[340135417,1728669062444,-500.0,0.00031506,2]
[340135418,1728669062454,-875.32,0.00031506,2]
[340135419,1728669062471,-402.22795311,0.00031506,2]
[340135420,1728669062481,-500.0,0.00031506,2]
[340135421,1728669062491,-505.22,0.00031506,2]
[340135422,1728669062501,-500.0,0.00031506,2]
[340135423,1728669062510,-250.30769094,0.00031506,2]
[340135424,1728669062521,-635.32,0.00031506,2]
[340135425,1728669062531,-500.0,0.00031506,2]
[340135426,1728669062540,-832.23,0.00031506,2]
[340135427,1728669062550,-506.41,0.00031506,2]
[340135428,1728669062560,-500.0,0.00031506,2]
[340135429,1728669062570,-500.0,0.00031506,2]
[340135430,1728669062581,-2919.17,0.00031506,2]
[340135431,1728669062591,-658.07,0.00031506,2]
[340135432,1728669062601,-509.63,0.00031506,2]
[340135433,1728669062611,-770.38,0.00031506,2]
[340135434,1728669062620,-1328.18,0.00031506,2]
[340135435,1728669062629,-152.0,0.0003158,2]
[340135436,1728669062640,-150.0,0.00031621,7]
[340135437,1728669062649,-500.66,0.0003166,2]
[340135438,1728669062659,-1002.5,0.0003168,2]
[340135439,1728669062669,-150.0,0.00031754,7]
[340135440,1728669062679,-5770.91629345,0.00031781,7]
[340135441,1728669062688,-462.89852771,0.00031781,7]
[340135442,1728669062697,-30275.3309743,0.00031781,7]
[340135443,1728669062710,-7956.88437728,0.00031781,7]
[340135444,1728669062719,-360.5,0.00031781,7]
[340135445,1728669062729,-555.13416137,0.00031781,7]
[340135446,1728669062739,-1613.68454525,0.00031869,2]
[340135447,1728669062750,-150.0,0.00031913,7]
[340135448,1728669062759,-509.0,0.00032,12]
[340135449,1728669062769,-1000.0,0.00032,12]
[340135450,1728669062779,-150.0,0.00032,120]
[340135451,1728669062789,-1000.0,0.00032,2]
[340135452,1728669062799,-1100.0,0.00032,2]
[340135453,1728669062809,-150.0,0.00032071,7]
[340135454,1728669062819,-161.11,0.000322,14]
[340135455,1728669062829,-2092.3331671,0.00032202,2]
[340135456,1728669062839,-2092.3331671,0.00032202,2]
[340135457,1728669062848,-162.5043638,0.00032202,2]
[340135458,1728669062858,-162.5043638,0.00032202,2]
[340135459,1728669062867,-547.6964904,0.00032202,2]
[340135460,1728669062878,-547.6964904,0.00032202,2]
[340135461,1728669062888,-295.480051,0.00032224,7]
[340135462,1728669062898,-295.480049,0.00032224,7]
[340135463,1728669062908,-499.2994,0.00032224,7]
[340135464,1728669062917,-499.2994,0.00032224,7]
[340135465,1728669062926,-458.555401,0.00032224,7]
[340135466,1728669062936,-458.555405,0.00032224,7]
[340135467,1728669062946,-151.0,0.00032224,7]
[340135468,1728669062957,-151.0,0.00032224,7]
[340135469,1728669062967,-151.0,0.00032224,7]
[340135470,1728669062979,-222.545125,0.00032224,7]
[340135471,1728669062989,-180.892139,0.00032224,7]
[340135472,1728669062999,-180.892143,0.00032224,7]
[340135473,1728669063008,-394.871888,0.00032224,7]
[340135474,1728669063019,-394.87189,0.00032224,7]
[340135475,1728669063028,-236.386338,0.00032224,7]
[340135476,1728669063140,-236.386348,0.00032224,7]
[340135477,1728669063150,-156.360367,0.00032224,7]
[340135478,1728669063159,-2044.103329,0.00032224,7]
[340135479,1728669063169,-156.360359,0.00032224,7]
[340135480,1728669063179,-2044.103324,0.00032224,7]
[340135481,1728669063188,-1210.0,0.00032224,2]
[340135482,1728669063199,-341.49665515,0.00032224,2]
[340135483,1728669063212,-2947.30441182,0.00032224,2]
[340135484,1728669063222,-1490.18758775,0.00032224,2]
[340135485,1728669063232,-7232.39665563,0.00032224,2]
[340135486,1728669063241,-1009.43328439,0.00032224,2]
[340135487,1728669063251,-5083.22642363,0.00032224,2]
[340135488,1728669063261,-2679.52153491,0.00032224,2]
[340135489,1728669063271,-2406.82674741,0.00032224,2]
[340135490,1728669063280,-2625.86275047,0.00032224,2]
[340135491,1728669063291,-3183.99458588,0.00032224,2]
[340135492,1728669063301,-1453.72712833,0.00032224,2]
[340135493,1728669063311,-22362.3261828,0.00032224,2]
[340135494,1728669063321,-7567.92153644,0.00032224,2]
[340135495,1728669063331,-1047.97987184,0.00032224,2]
[340135496,1728669063341,-5853.57791506,0.00032224,2]
[340135497,1728669063350,-853.13523669,0.00032224,2]
[340135498,1728669063360,-1025.1422818,0.00032224,2]
[340135499,1728669063370,-187.21650382,0.00032224,2]
[340135500,1728669063380,-9057.32166706,0.00032224,2]
[340135501,1728669063389,-1285.44008087,0.00032224,2]
[340135502,1728669063399,-4847.08697928,0.00032224,2]
[340135503,1728669063409,-291.13192884,0.00032224,2]
[340135504,1728669063419,-22320.92077993,0.00032224,2]
[340135505,1728669063428,-12585.95403802,0.00032224,2]
[340135506,1728669063438,-1884.45436667,0.00032224,2]
[340135507,1728669063447,-180.53829689,0.00032224,2]
[340135508,1728669063458,-5477.69234715,0.00032224,2]
[340135509,1728669063468,-643.0,0.00032224,2]
[340135510,1728669063477,-951.91212995,0.00032224,2]
[340135511,1728669063487,-28801.05651285,0.00032224,2]
[340135512,1728669063496,-7012.23471423,0.00032224,2]
[340135513,1728669063506,-562.25122335,0.00032224,2]
[340135514,1728669063516,-1802.53073008,0.00032224,2]
[340135515,1728669063526,-3183.3083059,0.00032224,2]
[340135516,1728669063536,-172.14362263,0.00032224,2]
[340135517,1728669063545,-550.0,0.00032224,2]
[340135518,1728669063554,-1438.55947645,0.00032224,2]
[340135519,1728669063564,-989.25397136,0.00032224,2]
[340135520,1728669063574,-936.75346366,0.00032224,2]
[340135521,1728669063584,-10504.95616456,0.00032224,2]
[340135522,1728669063595,-14667.49077669,0.00032224,2]
[340135523,1728669063604,-170.49811772,0.00032224,2]
[340135524,1728669063614,-6000.0,0.00032224,2]
[340135525,1728669063623,-1014.09537081,0.00032224,2]
[340135526,1728669063633,-4734.62741041,0.00032224,2]
[340135527,1728669063643,-552.73922125,0.00032224,2]
[340135528,1728669063654,-150.0,0.00032224,2]
[340135529,1728669063664,-614.85899652,0.00032224,2]
[340135530,1728669063673,-210.77796487,0.00032224,2]
[340135531,1728669063683,-441.24874379,0.00032224,2]
[340135532,1728669063692,-1047.55107768,0.00032224,2]
[340135533,1728669063702,-2500.0,0.00032224,2]
[340135534,1728669063713,-568.73023917,0.00032224,2]
[340135535,1728669063722,-2334.95173835,0.00032224,2]
[340135536,1728669063732,-529.07964594,0.00032224,2]
[340135537,1728669063741,-895.63957369,0.00032224,2]
[340135538,1728669063751,-472.80626599,0.00032224,2]
[340135539,1728669063760,-1555.8738944,0.00032224,2]
[340135540,1728669063770,-2000.0,0.00032224,2]
[340135541,1728669063780,-10784.36693277,0.00032224,2]
[340135542,1728669063790,-319.81913199,0.00032224,2]
[340135543,1728669063799,-2195.24084802,0.00032224,2]
[340135544,1728669063809,-537.5904489,0.00032224,2]
[340135545,1728669063819,-4912.18897562,0.00032224,2]
[340135546,1728669063829,-21044.11068391,0.00032224,2]
[340135547,1728669063838,-357.95271836,0.00032224,2]
[340135548,1728669063848,-2163.41849725,0.00032224,2]
[340135549,1728669063857,-278.37013692,0.00032224,2]
[340135550,1728669063867,-882.54986129,0.00032224,2]
[340135551,1728669063877,-150.0,0.00032224,2]
[340135552,1728669063887,-2295.53266873,0.00032224,2]
[340135553,1728669063897,-14486.43540161,0.00032224,2]
[340135554,1728669063907,-1803.23545777,0.00032224,2]
[340135555,1728669063916,-3881.84629594,0.00032224,2]
[340135556,1728669063926,-13792.54677747,0.00032224,2]
[340135557,1728669063935,-216.1972236,0.00032224,2]
[340135558,1728669063945,-209.00178161,0.00032224,2]
[340135559,1728669063954,-5041.89863558,0.00032224,2]
[340135560,1728669063964,-3187.61331329,0.00032224,2]
[340135561,1728669063977,-7958.92185765,0.00032224,2]
[340135562,1728669063987,-1039.0,0.00032224,2]
[340135563,1728669063997,-1544.90022782,0.00032224,2]
[340135564,1728669064007,-1000.0,0.00032224,2]
[340135565,1728669064017,-1000.0,0.00032224,2]
[340135566,1728669064026,-1000.0,0.00032224,2]
[340135567,1728669064036,-1000.0,0.00032224,2]
[340135568,1728669064045,-1000.0,0.00032224,2]
[340135569,1728669064055,-1000.0,0.00032224,2]
[340135570,1728669064066,-1000.0,0.00032224,2]
[340135571,1728669064076,-1000.0,0.00032224,2]
[340135572,1728669064086,-150.0,0.00032224,2]
[340135573,1728669064095,-150.0,0.00032224,2]
[340135574,1728669064105,-206876.03372701,0.00032224,120]
[340135575,1728669064129,-900.0,0.00032224,120]
[340135576,1728669064239,-651.35935254,0.00023822,2]
[340135577,1728669064250,-12851.22908345,0.00032224,120]
[340135578,1728669064266,-269.24704914,0.00032224,120]
[340135579,1728669064277,-3144.89175,0.00032224,120]
[340135580,1728669064289,-2136.965415,0.00032224,120]
[340135581,1728669064300,-63813.88702632,0.00032224,120]
[340135582,1728669064310,-150.0,0.00032224,2]
[340135583,1728669064319,-169.15909033,0.00032224,2]
[340135584,1728669064329,-165.55719644,0.00032224,120]
[340135585,1728669064338,-172.87423265,0.00032224,2]
[340135586,1728669064348,-5050.0,0.00032224,32]
[340135587,1728669064357,-3447.25252669,0.00032224,120]
[340135588,1728669064367,-5050.0,0.00032224,31]
[340135589,1728669064376,-8799.66824879,0.00032224,2]
[340135590,1728669064385,-388.89045074,0.00032224,120]
[340135591,1728669064395,-603.04215439,0.00032224,6]
[340135592,1728669064404,-14542.22607948,0.00032224,3]
[340135593,1728669064416,-5203.19517503,0.00032224,3]
[340135594,1728669064425,-5082.79788232,0.00032224,7]
[340135595,1728669064435,-150.57811613,0.00032224,3]
[340135596,1728669064445,-272.9401068,0.00032224,60]
[340135597,1728669064454,-189709.23360977,0.00032224,30]
[340135598,1728669064476,-387.97450325,0.00032224,60]
[340135599,1728669064487,-209.341938,0.00032224,90]
[340135600,1728669064496,-278.33633156,0.00032224,30]
[340135601,1728669064506,-219.8486682,0.00032224,30]
[340135602,1728669064516,-263.25565761,0.00032224,120]
[340135603,1728669064527,-154.29241647,0.00032224,30]
[340135604,1728669064536,-338.31194206,0.00032224,14]
[340135605,1728669064546,-404.56652154,0.00032224,30]
[340135606,1728669064556,-822.95712403,0.00032224,10]
[340135607,1728669064566,-158.0,0.00032224,120]
[340135608,1728669064577,-42007.07597659,0.00032224,120]
[340135609,1728669064587,-2064.9701,0.00032224,30]
[340135610,1728669064597,-160.0330715,0.00032224,60]
[340135611,1728669064606,-156.70482055,0.00032224,30]
[340135612,1728669064616,-171.22809348,0.00032224,30]
[340135613,1728669064626,-156.66911718,0.00032224,30]
[340135614,1728669064636,-162.34496138,0.00032224,30]
[340135615,1728669064646,-1000.0,0.00032224,2]
[340135616,1728669064656,-1000.0,0.00032224,2]
[340135617,1728669064665,-1000.0,0.00032224,2]
[340135618,1728669064675,-1000.0,0.00032224,2]
[340135619,1728669064685,-1000.0,0.00032224,120]
[340135620,1728669064695,-1000.0,0.00032224,2]
[340135621,1728669064704,-630.0,0.00032224,2]
[340135622,1728669064717,-150.0,0.00032224,120]
[340135623,1728669064727,-1000.0,0.00032224,30]
[340135624,1728669064736,-652.43697208,0.00032224,26]
[340135625,1728669064746,-164.36363845,0.00032224,120]
[340135626,1728669064756,-517.12071074,0.00032224,7]
[340135627,1728669064765,-2068.08116316,0.00032224,120]
[340135628,1728669064775,-503.64338996,0.00032224,7]
[340135630,1728669514829,550.0,0.0001,2]
[340135631,1728669588979,160.11,0.00010959,2]
[340135711,1728670045931,550.0,0.0001,2]
[340135713,1728670138991,161.24,0.00010959,2]
[340135722,1728670232235,-354.88,0.00012,2]
[340135723,1728670232246,-245.12,0.00012,2]
[340135724,1728670232257,-170.51932731,0.000139,2]
[340135725,1728670232266,-650.0,0.00014,2]
[340135726,1728670232276,-2500.0,0.00014033,2]
[340135727,1728670232286,-2500.0,0.000148,2]
[340135728,1728670232296,-1428.0,0.00015,2]
[340135729,1728670232305,-700.0,0.00016,2]
[340135730,1728670232315,-143.85413536,0.00016438,2]
[340135731,1728670232326,-31.58586464,0.00016438,2]
[340135732,1728670232335,-1466.786944,0.00017243,2]
[340135733,1728670232344,-1154.48945526,0.0001733,2]
[340135734,1728670232355,-2599.99999999,0.0001733,2]
[340135735,1728670232366,-629.5,0.0001733,2]
[340135736,1728670232381,-272.47,0.0001733,2]
[340135737,1728670232393,-691.28419693,0.0001733,2]
[340135738,1728670232412,-190.33634782,0.0001733,2]
[340135739,1728670232421,-302.38,0.0001733,2]
[340135740,1728670232430,-1944.04,0.0001733,2]
[340135741,1728670232439,-365.5,0.0001733,2]
[340135742,1728670232451,-750.0,0.00018,2]
[340135743,1728670232460,-499.99,0.00018159,2]
[340135744,1728670232469,-250.0,0.00018225,2]
[340135745,1728670232480,-182.23,0.00018225,2]
[340135746,1728670232490,-2751.0,0.00018225,2]
[340135747,1728670232499,-250.0,0.00018668,2]
[340135748,1728670232508,-431.4,0.00018903,2]
[340135749,1728670232518,-106.49597312,0.00019575,2]
[340135750,1728670232530,-322.38932731,0.00019575,2]
[340135753,1728670238308,-200.0,0.00018562,2]
[340135754,1728670238318,-821.11469957,0.00019575,2]
[340135756,1728670238327,-365.5,0.00019594,2]
[340135757,1728670238336,-300.0,0.00019595,2]
[340135758,1728670238346,-150.0,0.00019725,2]
[340135759,1728670238354,-214.7585,0.000198,2]
[340135760,1728670238363,-5980.75108168,0.000198,2]
[340135761,1728670238373,-4153.997803,0.000199,2]
[340135762,1728670238384,-19584.17613878,0.000199,2]
[340135763,1728670238396,-1362.14790047,0.000199,2]
[340135764,1728670238411,-585.41820824,0.000199,2]
[340135765,1728670238422,-504.46416423,0.000199,2]
[340135766,1728670238508,-1042.2951852,0.000199,2]
[340135767,1728670238519,-728.78495617,0.000199,2]
[340135768,1728670238530,-590.62314607,0.000199,2]
[340135769,1728670238541,-7003.06307278,0.000199,2]
[340135770,1728670238551,-1220.78618031,0.000199,2]
[340135771,1728670238562,-3534.44466044,0.000199,2]
[340135772,1728670238573,-394.12782113,0.000199,2]
[340135773,1728670238584,-24598.67570169,0.000199,2]
[340135774,1728670238595,-570.23685725,0.000199,2]
[340135775,1728670238606,-23333.39692139,0.000199,2]
[340135776,1728670238616,-3013.68428996,0.000199,2]
[340135777,1728670238628,-7442.804616,0.000199,2]
[340135778,1728670238639,-2130.83911476,0.000199,2]
[340135779,1728670238650,-726.22550044,0.000199,2]
[340135780,1728670238660,-2564.7511365,0.000199,2]
[340135781,1728670238671,-620.27204007,0.000199,2]
[340135782,1728670238682,-1553.4252,0.000199,2]
[340135783,1728670238693,-2289.53902093,0.000199,2]
[340135784,1728670238705,-449.59669731,0.000199,2]
[340135785,1728670238715,-464.38410513,0.000199,2]
[340135786,1728670238726,-974.16207443,0.000199,2]
[340135787,1728670238737,-399.08923112,0.000199,2]
[340135788,1728670238748,-1879.79073718,0.000199,2]
[340135789,1728670238759,-693.43991902,0.000199,2]
[340135790,1728670238768,-268.6748,0.000199,2]
[340135791,1728670238777,-3711.851,0.000199,2]
[340135792,1728670238787,-6224.67138094,0.000199,2]
[340135793,1728670238805,-845.57482597,0.000199,2]
[340135794,1728670238815,-5403.3429348,0.000199,2]
[340135795,1728670238826,-15597.8082143,0.000199,2]
[340135796,1728670238837,-720.62291816,0.000199,2]
[340135797,1728670238848,-11109.95901232,0.000199,2]
[340135892,1728670240474,-1404.60419374,0.000199,2]
[340135947,1728670246195,-12403.55632615,0.000199,2]
[340135948,1728670246231,-268.92269362,0.000199,2]
[340135949,1728670246242,-680.72730638,0.00019945,2]
[340135950,1728670246254,-23219.27269362,0.00019945,2]
[340135951,1728670246264,-800.0,0.0002,2]
[340135952,1728670246273,-217.0,0.000204,2]
[340135953,1728670246283,-150.0,0.00020509,2]
[340135955,1728670246293,-300.0,0.00020965,2]
[340135956,1728670246302,-200.0,0.00021026,2]
[340135957,1728670246311,-150.0,0.00021057,2]
[340135958,1728670246321,-182.57,0.00021383,2]
[340135959,1728670246330,-150.0,0.00021605,2]
[340135960,1728670246340,-365.5,0.00021858,2]
[340135961,1728670246349,-850.0,0.00022,2]
[340135962,1728670246359,-150.0,0.00022153,2]
[340135963,1728670246368,-150.0,0.00022701,2]
[340135964,1728670246377,-5980.75108167,0.00022909,2]
[340135965,1728670246387,-318.9,0.00023,2]
[340135966,1728670246397,-1005.54,0.00023,2]
[340135967,1728670246410,-150.0,0.00023249,2]
[340135968,1728670246419,-150.0,0.00023797,2]
[340135969,1728670246429,-318.9,0.00023865,2]
[340135970,1728670246438,-900.0,0.00024,2]
[340135971,1728670246448,-365.5,0.00024122,2]
[340135972,1728670246459,-500.0,0.0002414,2]
[340135973,1728670246468,-500.0,0.0002414,2]
[340135974,1728670246477,-500.0,0.0002414,2]
[340135975,1728670246487,-500.0,0.0002414,2]
[340135976,1728670246498,-500.0,0.0002414,2]
[340135977,1728670246507,-500.0,0.0002414,2]
[340135978,1728670246517,-500.0,0.0002414,2]
[340135979,1728670246527,-500.0,0.0002414,2]
[340135980,1728670246537,-500.0,0.0002414,2]
[340135981,1728670246546,-500.0,0.0002414,2]
[340135982,1728670246556,-500.0,0.0002414,2]
[340135983,1728670246565,-500.0,0.0002414,2]
[340135984,1728670246574,-500.0,0.0002414,2]
[340135985,1728670246583,-500.0,0.0002414,2]
[340135986,1728670246592,-500.0,0.0002414,2]
[340135987,1728670246602,-500.0,0.0002414,2]
[340135988,1728670246612,-500.0,0.0002414,2]
[340135989,1728670246622,-500.0,0.0002414,2]
[340135990,1728670246632,-500.0,0.0002414,2]
[340135991,1728670246642,-500.0,0.0002414,2]
[340135992,1728670246654,-500.0,0.0002414,2]
[340135993,1728670246665,-500.0,0.0002414,2]
[340135994,1728670246675,-500.0,0.0002414,2]
[340135995,1728670246684,-500.0,0.0002414,2]
[340135996,1728670246693,-500.0,0.0002414,2]
[340135997,1728670246702,-500.0,0.0002414,2]
[340135998,1728670246712,-500.0,0.0002414,2]
[340135999,1728670246721,-500.0,0.0002414,2]
[340136000,1728670246730,-500.0,0.0002414,2]
[340136001,1728670246739,-500.0,0.0002414,2]
[340136002,1728670246749,-500.0,0.0002414,2]
[340136003,1728670246758,-500.0,0.0002414,2]
[340136004,1728670246767,-500.0,0.0002414,2]
[340136005,1728670246776,-141.32097541,0.0002414,2]
[340136006,1728670246792,-358.67902459,0.0002414,2]
[340136007,1728670246801,-500.0,0.0002414,2]
[340136008,1728670246810,-500.0,0.0002414,2]
[340136009,1728670246819,-500.0,0.0002414,2]
[340136010,1728670246828,-500.0,0.0002414,2]
[340136012,1728670246837,-500.0,0.0002414,2]
[340136013,1728670246846,-500.0,0.0002414,2]
[340136014,1728670246855,-500.0,0.0002414,2]
[340136015,1728670246864,-500.0,0.0002414,2]
[340136016,1728670246873,-48.23044725,0.0002414,2]
[340136017,1728670246883,-263.86078829,0.0002414,2]
[340136018,1728670246894,-187.90876446,0.0002414,2]